[Event "FISU WUMSCC Men 2024"]
[Site "Entebbe"]
[Date "2024.06.27"]
[Round "4.1"]
[White "Szpar, Milosz"]
[Black "Horak, Martin"]
[Result "1-0"]
[ECO "C42"]
[WhiteElo "2497"]
[BlackElo "2333"]
[Annotator "TA"]
[PlyCount "75"]
[EventDate "2024.06.24"]
[EventType "swiss"]
[EventCountry "UGA"]
[SourceTitle "playchess.com"]
[Source "ChessBase"]
[SourceQuality "1"]
[TimeControl "5400+30"]

{[%evp 16,75,20,15,21,12,23,16,10,14,14,16,19,16,27,11,15,16,21,20,17,17,19,17,20,24,23,19,33,27,30,31,36,32,47,52,47,47,47,47,122,114,115,117,125,123,128,139,136,148,514,241,10915,6061,29984,29985,29978,29978,29985,29986,29990,29990]} 1. e4 {[%emt 0:04:09]} e5 {[%emt 0:00:23]} 2. Nf3 {[%emt 0:00:43]} Nf6 {[%emt 0:00:11]} 3. Nxe5 {[%emt 0:02:38]} d6 {[%emt 0:00:07]} 4. Nf3 {[%emt 0:00:05]} Nxe4 {[%emt 0:00:05]} 5. Nc3 {[%emt 0:02:22]} Nxc3 {[%emt 0:00:30]} 6. dxc3 {[%emt 0:00:30]} Be7 7. Bf4 Nc6 {[%emt 0:02:43]} 8. Qd2 {[%emt 0:01:14]} Be6 {[%emt 0:00:28]} 9. O-O-O {[%emt 0:01:47]} Qd7 {[%emt 0:00:25]} 10. Kb1 {[%emt 0:01:04]} O-O-O {[%emt 0:02:49]} 11. Ng5 {[%emt 0:01:06]} Bxg5 {[%emt 0:01:47] The position is equal.} 12. Bxg5 {[%emt 0:00:24]} f6 {[%emt 0:00:13]} 13. Be3 {[%emt 0:00:26]} a6 {[%emt 0:01:43]} 14. b3 {[%emt 0:01:05]} h5 {[%emt 0:02:11]} 15. h4 {[%emt 0:01:15]} Bg4 {[%emt 0:03:58]} 16. f3 {[%emt 0:00:19]} Bf5 {[%emt 0:00:08]} 17. Bc4 {[%emt 0:12:43]} Qe8 {[%emt 0:11:36]} 18. Rhe1 {[%emt 0:07:08]} Qg6 {[%emt 0:00:49]} 19. Bf1 {[%emt 0:02:54]} Rhe8 {[%emt 0:03:17]} 20. Kb2 {[%emt 0:02:57]} Re7 {[%emt 0:05:37]} 21. Bf4 {[%emt 0:00:54]} Rde8 {[%emt 0:01:10]} 22. Rxe7 {[%emt 0:00:36]} Rxe7 {[%emt 0:00:13]} 23. c4 {[%emt 0:00:47][%cal Bc3c4,Bc4c5][%mdl 32]} Qe8 {[%emt 0:20:12]} 24. Qc3 {[%emt 0:02:43]} Qd7 {[%emt 0:06:27]} 25. a4 {[%emt 0:12:34]} a5 {[%emt 0:03:11]} 26. c5 {[%emt 0:00:41]} d5 {[%emt 0:00:56]} 27. Bb5 $36 {[%emt 0:01:31][%mdl 2048] Black is under pressure.} Qe6 {[%emt 0:03:35]} ({Better is} 27... d4 $14 28. Qc4 Be6 (28... Qe6 29. Qxe6+ Rxe6 30. Rd2 $14) 29. Bxc6 Qxc6) 28. Qd2 {[%emt 0:05:38] White is more active.} d4 {[%emt 0:07:32]} 29. Bxc6 {[%emt 0:01:49]} Qxc6 {[%emt 0:00:21]} 30. Qxa5 {[%emt 0:01:22] Hoping for Qa8+.} (30. Qxd4 Rd7 31. Qg1 Rxd1 32. Qxd1 Qxc5 $16) 30... d3 {[%emt 0:02:48]} 31. cxd3 {[%emt 0:02:13]} Re2+ {[%emt 0:00:45]} 32. Ka3 $1 {[%emt 0:03:27] d4 is the strong threat.} Rxg2 $2 {[%emt 0:12:43][%mdl 8192] Black cannot hold the game after this.} (32... Be6 $16 {is a better chance.} 33. d4 Bd5) 33. d4 {[%emt 0:04:52]} (33. Re1 $142 {Intending Qa8+ and mate.} Kd7 (33... g5 34. Qa8+ Kd7 35. Qe8#) 34. Bxc7 Qxf3 (34... Qxc7 $2 {perishes.} 35. Re7+ Kxe7 36. Qxc7+ $18) 35. Bd6) 33... g5 $2 {[%emt 0:00:44]} (33... Rc2 34. Qa8+ Kd7) 34. d5 $18 {[%emt 0:03:56][%cal Bd4d5,Bd5d6][%mdl 32]} b6 {[%emt 0:00:21] [#]} 35. Qa6+ $1 {[%emt 0:01:11] White mates.} Qb7 {[%emt 0:00:10] [#]} 36. Qb5 $1 {[%emt 0:00:32][%cal Rb5e8]} Kb8 {[%emt 0:01:15]} 37. c6 {[%emt 0:00:27]} Qa7 {[%emt 0:01:03]} 38. d6 {[%emt 0:00:26] Weighted Error Value: White=0.20 (precise) /Black=0.30.  Loses game:     	---       	Black=1      Mistake:       	White=1     	Black=2      OK:         	White=14    	Black=5      Best:        	White=1     	Black=1      Strong:       	White=1     	---} 1-0

[Event "FISU WUMSCC Men 2024"]
[Site "Entebbe"]
[Date "2024.06.27"]
[Round "4.2"]
[White "Turcan, Richard"]
[Black "Gatineau, Yovann"]
[Result "1/2-1/2"]
[ECO "C09"]
[WhiteElo "2374"]
[BlackElo "2414"]
[Annotator "RC"]
[PlyCount "99"]
[EventDate "2024.06.24"]
[EventType "swiss"]
[EventCountry "UGA"]
[SourceTitle "playchess.com"]
[Source "ChessBase"]
[SourceQuality "1"]
[TimeControl "5400+30"]

1. e4 {[%emt 1:31:00]} e6 2. d4 {[%emt 0:00:00]} d5 {[%emt 0:02:39]} 3. Nd2 {[%emt 0:00:00]} c5 {[%emt 0:00:10]} 4. exd5 {[%emt 0:00:00]} exd5 {[%emt 0:00:06]} 5. Ngf3 {[%emt 0:00:00]} Nc6 {[%emt 0:00:06]} 6. Bb5 {[%emt 0:00:00]} cxd4 {[%emt 0:00:05]} 7. O-O {[%emt 0:00:00]} Bd6 8. Nb3 {[%emt 0:00:00]} Nge7 {[%emt 0:01:23]} 9. Nbxd4 {[%emt 0:00:00]} O-O {[%emt 0:00:36]} 10. Be3 {[%emt 0:00:00]} Qc7 {[%emt 0:03:32]} 11. h3 {[%emt 0:00:00]} a6 {[%emt 0:07:37]} 12. Bd3 {[%emt 0:00:00]} Nb4 {[%emt 0:01:43]} 13. Re1 {[%emt 0:00:00]} Bd7 {[%emt 0:02:01]} 14. Bf1 {[%emt 0:00:00]} Nf5 {[%emt 0:11:06]} 15. Nxf5 {[%emt 0:00:00]} Bxf5 {[%emt 0:00:06]} 16. c3 {[%emt 0:00:00]} Nc2 {[%emt 0:00:49]} 17. Nd4 {[%emt 0:00:00]} Nxe3 {[%emt 0:00:27]} 18. Rxe3 {[%emt 0:00:00]} Be4 {[%emt 0:00:50]} 19. Bd3 {[%emt 0:00:00]} Bh2+ {[%emt 0:01:30]} 20. Kh1 {[%emt 0:00:00]} Bf4 {[%emt 0:00:05]} 21. Re2 {[%emt 0:00:00]} Rae8 {[%emt 0:07:28]} 22. Qc2 {[%emt 0:00:00]} Bxd3 {[%emt 0:00:58]} 23. Qxd3 {[%emt 0:00:00]} Rxe2 {[%emt 0:00:32]} 24. Qxe2 {[%emt 0:00:00]} g6 {[%emt 0:03:12]} 25. Re1 {[%emt 0:00:00]} Rd8 {[%emt 0:04:49]} 26. h4 {[%emt 0:00:00]} Bh6 {[%emt 0:08:01]} 27. g3 {[%emt 0:00:00]} Bg7 {[%emt 0:01:12]} 28. Qe7 {[%emt 0:00:00]} Qd6 {[%emt 0:12:57]} 29. h5 {[%emt 0:00:00]} Bf6 {[%emt 0:20:59]} 30. Qe3 {[%emt 0:01:56]} Rd7 {[%emt 0:01:50]} 31. Qe8+ {[%emt 0:02:05]} Kg7 {[%emt 0:00:01]} 32. Kg2 {[%emt 0:01:17]} Bxd4 {[%emt 0:02:28]} 33. cxd4 {[%emt 0:00:37]} gxh5 {[%emt 0:00:49]} 34. Qe2 {[%emt 0:02:34]} Qg6 {[%emt 0:03:35]} 35. Qe5+ {[%emt 0:00:21]} Qf6 {[%emt 0:00:33]} 36. Qxh5 {[%emt 0:00:15]} Qg6 {[%emt 0:00:52]} 37. Qh4 {[%emt 0:00:47]} Rd6 {[%emt 0:00:26]} 38. Re5 {[%emt 0:01:44]} h6 {[%emt 0:00:29]} 39. Qf4 {[%emt 0:03:09]} Rf6 {[%emt 0:00:31]} 40. Qe3 {[%emt 0:00:15]} Re6 {[%emt 0:00:24]} 41. Rxe6 {[%emt 0:00:57]} fxe6 {[%emt 0:00:03]} 42. Qe5+ {[%emt 0:00:29]} Kf7 {[%emt 0:00:47]} 43. Qc7+ {[%emt 0:00:26]} Kf6 {[%emt 0:00:09]} 44. Qe5+ {[%emt 0:02:03]} Kf7 {[%emt 0:00:04]} 45. Qf4+ {[%emt 0:00:03]} Kg7 {[%emt 0:00:45]} 46. Qc7+ {[%emt 0:00:05]} Kf6 {[%emt 0:00:07]} 47. f3 {[%emt 0:00:07]} Qd3 {[%emt 0:00:37]} 48. Qf4+ {[%emt 0:01:16]} Kg6 {[%emt 0:00:08]} 49. Qe5 {[%emt 0:01:29]} Kf7 {[%emt 0:01:21]} 50. Qc7+ {[%emt 0:00:41]} 1/2-1/2

[Event "FISU WUMSCC Men 2024"]
[Site "Entebbe"]
[Date "2024.06.27"]
[Round "4.3"]
[White "Defromont, Benjamin"]
[Black "Walter, Szymon"]
[Result "0-1"]
[ECO "B33"]
[WhiteElo "2380"]
[BlackElo "2313"]
[Annotator "RC"]
[PlyCount "86"]
[EventDate "2024.06.24"]
[EventType "swiss"]
[EventCountry "UGA"]
[SourceTitle "playchess.com"]
[Source "ChessBase"]
[SourceQuality "1"]
[TimeControl "5400+30"]

1. e4 {[%emt 0:02:39]} c5 {[%emt 0:00:19]} 2. Nf3 {[%emt 0:01:22]} e6 {[%emt 0:00:53]} 3. d4 {[%emt 0:00:07]} cxd4 {[%emt 0:00:08]} 4. Nxd4 {[%emt 0:00:05]} Nc6 {[%emt 0:00:47]} 5. Nc3 {[%emt 0:00:10]} Nf6 6. Ndb5 {[%emt 0:00:14]} d6 {[%emt 0:04:58]} 7. Bf4 e5 {[%emt 0:17:28]} 8. Bg5 {[%emt 0:00:17]} a6 {[%emt 0:00:37]} 9. Na3 {[%emt 0:00:04]} b5 {[%emt 0:06:27]} 10. Bxf6 {[%emt 0:00:06]} gxf6 {[%emt 0:01:13]} 11. Nd5 {[%emt 0:00:05]} Be6 {[%emt 0:01:05]} 12. g3 {[%emt 0:06:25]} Bg7 {[%emt 0:03:17]} 13. Bg2 {[%emt 0:00:07]} O-O {[%emt 0:00:48]} 14. O-O {[%emt 0:00:30]} Ne7 {[%emt 0:03:25]} 15. c4 {[%emt 0:14:32]} Rb8 {[%emt 0:09:45]} 16. cxb5 {[%emt 0:00:55]} axb5 {[%emt 0:00:08]} 17. Nc2 {[%emt 0:00:19]} Bxd5 {[%emt 0:01:19]} 18. exd5 {[%emt 0:00:06]} f5 {[%emt 0:00:10]} 19. Nb4 {[%emt 0:01:59]} e4 {[%emt 0:01:58]} 20. Qe2 {[%emt 0:03:44]} Qb6 {[%emt 0:02:07]} 21. Rfd1 {[%emt 0:04:48]} Rbc8 {[%emt 0:01:31]} 22. Kh1 {[%emt 0:03:28]} Rc7 {[%emt 0:05:43]} 23. f3 {[%emt 0:17:13]} Rc4 {[%emt 0:05:28]} 24. a3 {[%emt 0:02:04]} exf3 {[%emt 0:02:15]} 25. Bxf3 {[%emt 0:00:53]} Ng6 {[%emt 0:00:13]} 26. Nc6 {[%emt 0:02:38]} f4 {[%emt 0:00:51]} 27. Rf1 {[%emt 0:03:54]} Qe3 {[%emt 0:03:34]} 28. gxf4 {[%emt 0:02:25]} Qxf4 {[%emt 0:00:45]} 29. Rae1 {[%emt 0:01:45]} Qh4 {[%emt 0:04:36]} 30. Rg1 {[%emt 0:10:02]} Rf4 {[%emt 0:01:47]} 31. Rg3 {[%emt 0:01:25]} Kh8 {[%emt 0:01:41]} 32. Reg1 {[%emt 0:00:14]} Qf6 {[%emt 0:00:51]} 33. b4 {[%emt 0:02:31]} Ra8 {[%emt 0:08:26]} 34. Bg2 {[%emt 0:03:44]} Rf2 {[%emt 0:07:04]} 35. Qxb5 {[%emt 0:00:59]} Nf4 {[%emt 0:00:06]} 36. Rf3 {[%emt 0:00:53]} Rxf3 {[%emt 0:01:30]} 37. Bxf3 {[%emt 0:00:04]} Qc3 {[%emt 0:00:44]} 38. Rf1 {[%emt 0:01:39]} Rg8 {[%emt 0:00:14]} 39. a4 {[%emt 0:06:41]} Bd4 {[%emt 0:02:12]} 40. Nxd4 {[%emt 0:08:27]} Qxd4 {[%emt 0:00:05]} 41. Qd7 {[%emt 0:00:46]} Nd3 {[%emt 0:02:16]} 42. Qxf7 {[%emt 0:00:28]} Qg1+ {[%emt 0:00:14]} 43. Rxg1 {[%emt 0:00:06]} Nf2# {[%emt 0:00:04]} 0-1

[Event "FISU WUMSCC Men 2024"]
[Site "Entebbe"]
[Date "2024.06.27"]
[Round "4.4"]
[White "Thilakarathne, G M H"]
[Black "Janik, Igor"]
[Result "1-0"]
[ECO "B77"]
[WhiteElo "2356"]
[BlackElo "2511"]
[Annotator "TA"]
[PlyCount "101"]
[EventDate "2024.06.24"]
[EventType "swiss"]
[EventCountry "UGA"]
[SourceTitle "playchess.com"]
[Source "ChessBase"]
[SourceQuality "1"]
[TimeControl "5400+30"]

{[%evp 28,101,-8,0,0,-17,-40,-41,-21,-45,-31,-60,-71,-68,-54,-86,-87,-99,-86,-90,-50,-52,-50,-78,0,-79,-75,-88,-85,-156,-14,-31,-24,-25,0,-43,0,0,0,0,0,0,1,0,135,137,160,177,274,262,281,268,252,0,317,310,514,416,433,414,748,696,793,807,762,585,629,578,604,625,4133,29957,29952,29958,5434,5387]} 1. e4 {[%emt 0:00:02]} c5 {[%emt 0:00:02]} 2. Nf3 {[%emt 0:00:08]} g6 {[%emt 0:00:02]} 3. d4 {[%emt 0:03:07]} cxd4 {[%emt 0:00:12]} 4. Nxd4 {[%emt 0:00:06]} Bg7 {[%emt 0:00:04]} 5. Nc3 {[%emt 0:00:13]} Nc6 {[%emt 0:00:03]} 6. Be3 {[%emt 0:00:09]} Nf6 {[%emt 0:00:04]} 7. Bc4 {[%emt 0:00:12]} O-O {[%emt 0:00:04]} 8. Bb3 {[%emt 0:00:16]} d6 {[%emt 0:00:05]} 9. f3 {[%emt 0:00:10]} Qa5 {[%emt 0:00:02]} 10. Qd2 {[%emt 0:00:32]} Nxd4 {[%emt 0:00:06]} 11. Bxd4 {[%emt 0:00:12]} Be6 {[%emt 0:00:01]} 12. O-O-O {[%emt 0:03:45]} b5 {[%emt 0:00:08]} 13. Kb1 {[%emt 0:03:40] B77: Sicilian Dragon: Yugoslav Attack, 9 Bc4 sidelines.} b4 14. Ne2 {[%emt 0:06:16]} Bxb3 {[%emt 0:00:10]} 15. cxb3 {[%emt 0:01:27]} e5 {[%emt 0:00:36]} 16. Be3 {[%emt 0:01:27]} d5 {[%emt 0:00:03]} 17. exd5 {[%emt 0:00:57]} Rfd8 {[%emt 0:00:02]} 18. d6 {[%emt 0:00:49]} Bf8 {[%emt 0:02:43]} 19. a4 {[%emt 0:14:42]} Rxd6 {[%emt 0:01:40]} 20. Qc2 {[%emt 0:02:46]} Nd5 $1 {[%emt 0:01:43]} 21. Bc1 $146 {[%emt 0:14:54]} ({Predecessor:} 21. Bf2 Qd8 22. Ng3 Rc8 23. Qe2 Nf4 24. Rxd6 Qxd6 25. Qd1 Qc7 26. h4 Nxg2 27. h5 {0-1 Pfeffer,R (2255)-Kanarek,M (2484) Oberliga Nord O 1213 2012 (8.2)}) 21... Qd8 {[%emt 0:03:04]} 22. Ng3 {[%emt 0:14:25]} f5 {[%emt 0:03:08]} 23. Qe2 {[%emt 0:08:32]} Bg7 {[%emt 0:01:18]} 24. Rhe1 {[%emt 0:11:43]} Rc8 {[%emt 0:00:29]} 25. Nf1 {[%emt 0:00:55]} h5 {[%emt 0:03:48]} ({Black should play} 25... Rd7 $17) 26. g3 {[%emt 0:00:53]} (26. Ne3 $11 Nf4 27. Rxd6 Qxd6 28. Nc4 Nxe2 29. Nxd6 Rxc1+ 30. Rxc1 Nxc1 31. Kxc1) 26... f4 $1 $17 {[%emt 0:02:23]} 27. Rd2 {[%emt 0:01:18]} Kh7 {[%emt 0:01:01]} 28. Rc2 {[%emt 0:02:52]} (28. Qe4 $142) 28... Rxc2 {[%emt 0:00:40]} (28... Nc3+ $1 $17 29. bxc3 bxc3) 29. Qxc2 $11 {[%emt 0:00:03]} Qd7 {[%emt 0:00:09]} 30. Re4 {[%emt 0:00:41]} Qh3 {[%emt 0:02:23]} 31. Qf2 {[%emt 0:01:12]} Rd7 {[%emt 0:00:49]} 32. Nd2 {[%emt 0:01:32]} Qf5 {[%emt 0:00:55]} 33. Ka2 $1 {[%emt 0:00:24]} Nf6 {[%emt 0:04:12]} 34. Rxb4 {[%emt 0:01:35]} Nd5 {[%emt 0:00:24]} 35. Rc4 {[%emt 0:00:49]} a5 {[%emt 0:00:40]} (35... Nb6 $11 {keeps the balance.} 36. Re4 Rc7) 36. Ne4 $16 {[%emt 0:00:14]} Nb4+ {[%emt 0:00:32]} 37. Kb1 {[%emt 0:00:14]} g5 {[%emt 0:01:41]} (37... Rd3 $142 38. Rc7 Rd7 (38... Rxb3 $2 39. Qa7 $18) 39. Rxd7 Qxd7 40. Ng5+ (40. gxf4 $2 Qd3+ 41. Ka1 Qxb3 $19) 40... Kh6) 38. Bd2 $1 $18 {[%emt 0:00:42]} Nd3 {[%emt 0:01:45]} 39. Qg2 {[%emt 0:01:40]} g4 {[%emt 0:00:26]} 40. Ka2 $2 {[%emt 0:00:50]} (40. Bxa5 $18 {Bc3 would now be deadly.} Rd5 41. Bc3) 40... Qg6 $2 {[%emt 0:03:57][%mdl 8192]} (40... gxf3 $1 $11 {and Black stays safe.} 41. Qxf3 Nxb2) 41. Bxa5 $18 {[%emt 0:01:04]} Rf7 $2 {[%emt 0:01:26]} (41... Qf5 42. Bc3 Nc1+ 43. Ka3 Nd3) 42. Bd2 {[%emt 0:01:00]} Bh6 {[%emt 0:00:29]} 43. Qe2 {[%emt 0:01:35]} fxg3 {[%emt 0:01:35]} (43... Rd7 $142 44. fxg4 hxg4) 44. hxg3 {[%emt 0:00:55]} (44. Qxd3 gxh2 45. Qf1 g3 $16) 44... Rxf3 {[%emt 0:01:20]} 45. Bxh6 {[%emt 0:00:44]} Qxh6 {[%emt 0:00:29]} 46. Nd2 {[%emt 0:00:49]} (46. Rc7+ Kg6 $16) 46... Qe3 {[%emt 0:00:47] [#]} 47. Qxe3 $1 {[%emt 0:00:26]} Rxe3 {[%emt 0:00:02]} 48. a5 {[%emt 0:00:38]} Rf3 {[%emt 0:01:06]} 49. Nxf3 {[%emt 0:00:41]} gxf3 {[%emt 0:00:01] [#]} 50. a6 $1 {[%emt 0:00:30]} f2 {[%emt 0:00:01]} 51. a7 {[%emt 0:00:01]} 1-0

[Event "FISU WUMSCC Men 2024"]
[Site "Entebbe"]
[Date "2024.06.27"]
[Round "4.5"]
[White "Jakab, Bela"]
[Black "Nyola Wasswa Mark"]
[Result "1/2-1/2"]
[ECO "B51"]
[WhiteElo "2390"]
[BlackElo "2067"]
[Annotator "RC"]
[PlyCount "119"]
[EventDate "2024.06.24"]
[EventType "swiss"]
[EventCountry "UGA"]
[SourceTitle "playchess.com"]
[Source "ChessBase"]
[SourceQuality "1"]
[TimeControl "5400+30"]

1. e4 {[%emt 0:01:40]} c5 {[%emt 0:00:54]} 2. Nf3 {[%emt 0:00:50]} d6 {[%emt 0:00:32]} 3. Bb5+ {[%emt 0:00:07]} Nd7 {[%emt 0:00:22]} 4. O-O {[%emt 0:00:29]} Ngf6 {[%emt 0:00:20]} 5. Re1 {[%emt 0:01:02]} a6 {[%emt 0:00:15]} 6. Bxd7+ {[%emt 0:04:38]} Qxd7 7. c4 {[%emt 0:04:23]} e5 {[%emt 0:02:56]} 8. Nc3 {[%emt 0:00:18]} b5 {[%emt 0:01:01]} 9. d3 {[%emt 0:00:38]} h6 {[%emt 0:01:07]} 10. Nh4 {[%emt 0:06:10]} b4 {[%emt 0:12:25]} 11. Na4 {[%emt 0:07:49]} Qc7 {[%emt 0:03:00]} 12. f4 {[%emt 0:02:04]} Be7 {[%emt 0:07:59]} 13. f5 {[%emt 0:06:52]} Bd7 {[%emt 0:02:01]} 14. g3 {[%emt 0:08:44]} Nh7 {[%emt 0:08:06]} 15. Ng2 {[%emt 0:01:25]} Bg5 {[%emt 0:03:57]} 16. h4 {[%emt 0:01:58]} Bxc1 {[%emt 0:00:10]} 17. Rxc1 {[%emt 0:00:04]} Nf6 {[%emt 0:06:52]} 18. Ne3 {[%emt 0:01:58]} g5 {[%emt 0:01:11]} 19. fxg6 {[%emt 0:21:39]} fxg6 {[%emt 0:01:11]} 20. Rf1 {[%emt 0:05:30]} O-O {[%emt 0:01:22]} 21. Rxf6 {[%emt 0:01:40]} Rxf6 {[%emt 0:00:08]} 22. Nd5 {[%emt 0:00:05]} Qd8 {[%emt 0:00:16]} 23. Nab6 {[%emt 0:02:58]} Rf7 {[%emt 0:06:59]} 24. Nxa8 {[%emt 0:00:37]} Qxa8 {[%emt 0:00:18]} 25. Qe2 {[%emt 0:01:32]} Qf8 {[%emt 0:00:47]} 26. Rf1 {[%emt 0:05:07]} Rxf1+ {[%emt 0:04:37]} 27. Qxf1 {[%emt 0:00:01]} Qxf1+ {[%emt 0:00:10]} 28. Kxf1 {[%emt 0:00:03]} Kf7 {[%emt 0:00:18]} 29. Kf2 {[%emt 0:00:05]} h5 {[%emt 0:03:45]} 30. Ke2 {[%emt 0:01:10]} a5 {[%emt 0:04:09]} 31. Ne3 {[%emt 0:03:06]} a4 {[%emt 0:04:24]} 32. Nc2 {[%emt 0:00:22]} Bg4+ {[%emt 0:00:40]} 33. Kd2 {[%emt 0:00:11]} Bd7 {[%emt 0:00:47]} 34. a3 {[%emt 0:00:06]} b3 {[%emt 0:00:23]} 35. Ne3 {[%emt 0:00:07]} Ke7 {[%emt 0:04:46]} 36. Nd5+ {[%emt 0:00:16]} Kd8 {[%emt 0:00:39]} 37. Ke2 {[%emt 0:00:15]} Bg4+ {[%emt 0:00:27]} 38. Kf2 {[%emt 0:00:08]} Be6 {[%emt 0:01:08]} 39. Nc3 {[%emt 0:00:25]} Bd7 {[%emt 0:00:15]} 40. g4 {[%emt 0:00:40]} Ke7 {[%emt 0:00:46]} 41. Kg3 {[%emt 0:00:14]} Kd8 {[%emt 0:05:43]} 42. Kf2 {[%emt 0:02:28]} Ke7 {[%emt 0:01:18]} 43. Nd5+ {[%emt 0:00:05]} Kd8 {[%emt 0:00:47]} 44. Ne3 {[%emt 0:00:42]} Be8 {[%emt 0:01:21]} 45. Kg3 {[%emt 0:00:32]} Kd7 {[%emt 0:00:32]} 46. Nd5 {[%emt 0:01:20]} Kd8 {[%emt 0:00:18]} 47. Kf3 {[%emt 0:02:01]} Bd7 {[%emt 0:00:26]} 48. gxh5 {[%emt 0:00:37]} gxh5 {[%emt 0:00:10]} 49. Ne3 {[%emt 0:00:05]} Be8 {[%emt 0:00:17]} 50. Ke2 {[%emt 0:00:13]} Kd7 {[%emt 0:01:21]} 51. Kd2 {[%emt 0:00:15]} Kd8 {[%emt 0:00:55]} 52. Kc3 {[%emt 0:00:05]} Kd7 {[%emt 0:00:56]} 53. Nd5 {[%emt 0:00:51]} Kd8 {[%emt 0:00:17]} 54. Nf6 {[%emt 0:00:23]} Ke7 {[%emt 0:00:24]} 55. Nh7 {[%emt 0:00:06]} Bd7 {[%emt 0:00:52]} 56. Ng5 {[%emt 0:00:09]} Bg4 {[%emt 0:00:23]} 57. Kd2 {[%emt 0:00:04]} Kf6 {[%emt 0:00:16]} 58. Ke3 {[%emt 0:00:05]} Kg7 {[%emt 0:00:32]} 59. Nf3 {[%emt 0:00:16]} Bxf3 {[%emt 0:00:09]} 60. Kxf3 {[%emt 0:00:34]} 1/2-1/2

[Event "FISU WUMSCC Men 2024"]
[Site "Entebbe"]
[Date "2024.06.27"]
[Round "4.6"]
[White "Alshnaiber, Yazeed"]
[Black "Mladek, Richard"]
[Result "0-1"]
[ECO "B90"]
[WhiteElo "1831"]
[BlackElo "2385"]
[Annotator "RC"]
[PlyCount "80"]
[EventDate "2024.06.24"]
[EventType "swiss"]
[EventCountry "UGA"]
[SourceTitle "playchess.com"]
[Source "ChessBase"]
[SourceQuality "1"]
[TimeControl "5400+30"]

1. e4 {[%emt 0:00:21]} c5 {[%emt 0:00:05]} 2. Nf3 {[%emt 0:00:11]} d6 {[%emt 0:00:04]} 3. d4 {[%emt 0:00:05]} cxd4 {[%emt 0:00:03]} 4. Nxd4 {[%emt 0:00:08]} Nf6 {[%emt 0:00:03]} 5. Nc3 {[%emt 0:00:09]} a6 {[%emt 0:00:04]} 6. h3 {[%emt 0:00:58]} e5 {[%emt 0:00:12]} 7. Nde2 {[%emt 0:00:46]} h5 {[%emt 0:00:10]} 8. g3 {[%emt 0:00:04]} Be7 {[%emt 0:01:51]} 9. Bg2 {[%emt 0:00:07]} b5 {[%emt 0:00:38]} 10. Nd5 {[%emt 0:00:06]} Nxd5 {[%emt 0:01:26]} 11. Qxd5 {[%emt 0:00:06]} Ra7 {[%emt 0:00:05]} 12. Be3 {[%emt 0:00:07]} Rb7 {[%emt 0:00:15]} 13. Qd2 Nd7 {[%emt 0:06:41]} 14. Nc3 {[%emt 0:09:25]} Nf6 {[%emt 0:01:25]} 15. O-O {[%emt 0:05:03]} b4 {[%emt 0:04:15]} 16. Nd5 {[%emt 0:01:46]} Nxd5 {[%emt 0:00:08]} 17. Qxd5 {[%emt 0:00:54]} Qc7 {[%emt 0:03:54]} 18. f4 {[%emt 0:21:13]} h4 {[%emt 0:03:28]} 19. g4 {[%emt 0:13:23]} Rb5 {[%emt 0:05:10]} 20. Qd2 {[%emt 0:04:07]} exf4 {[%emt 0:00:44]} 21. Bxf4 {[%emt 0:01:24]} O-O {[%emt 0:00:46]} 22. Rad1 {[%emt 0:02:13]} Be6 {[%emt 0:05:38]} 23. Kh1 {[%emt 0:14:01]} Rc8 {[%emt 0:03:48]} 24. Rf2 {[%emt 0:04:20]} a5 {[%emt 0:03:22]} 25. Bxd6 {[%emt 0:02:35]} Bxd6 {[%emt 0:00:13]} 26. Qxd6 {[%emt 0:00:04]} Qxd6 {[%emt 0:00:29]} 27. Rxd6 {[%emt 0:00:06]} Rbc5 {[%emt 0:01:44]} 28. Rdd2 {[%emt 0:06:30]} Bxa2 {[%emt 0:01:22]} 29. Bf1 {[%emt 0:00:16]} a4 {[%emt 0:02:22]} 30. Rd4 {[%emt 0:02:09]} Rb8 {[%emt 0:07:07]} 31. Kg2 {[%emt 0:04:03]} Be6 {[%emt 0:01:00]} 32. Rfd2 {[%emt 0:00:41]} a3 {[%emt 0:01:10]} 33. bxa3 {[%emt 0:00:18]} bxa3 {[%emt 0:00:04]} 34. Ra4 {[%emt 0:00:15]} Rc3 {[%emt 0:01:17]} 35. Kf2 {[%emt 0:08:50]} a2 {[%emt 0:01:05]} 36. e5 {[%emt 0:01:03]} Rb1 {[%emt 0:01:25]} 37. Rd8+ {[%emt 0:00:07]} Kh7 {[%emt 0:00:07]} 38. Rda8 {[%emt 0:00:59]} Rxc2+ {[%emt 0:00:20]} 39. Be2 {[%emt 0:00:05]} Rbb2 {[%emt 0:00:13]} 40. Re4 {[%emt 0:00:11]} Bd5 {[%emt 0:00:05]} 0-1

[Event "FISU WUMSCC Men 2024"]
[Site "Entebbe"]
[Date "2024.06.27"]
[Round "4.7"]
[White "Szustakowski, Antoni"]
[Black "Selepe, Lwazi"]
[Result "1-0"]
[ECO "D20"]
[WhiteElo "2362"]
[BlackElo "1913"]
[Annotator "RC"]
[PlyCount "48"]
[EventDate "2024.06.24"]
[EventType "swiss"]
[EventCountry "UGA"]
[SourceTitle "playchess.com"]
[Source "ChessBase"]
[SourceQuality "1"]
[TimeControl "5400+30"]

1. d4 {[%emt 0:00:05]} d5 {[%emt 0:00:20]} 2. c4 {[%emt 0:00:26]} dxc4 {[%emt 0:00:33]} 3. e4 {[%emt 0:01:40]} b5 {[%emt 0:00:59]} 4. a4 {[%emt 0:01:25]} c6 {[%emt 0:00:17]} 5. axb5 {[%emt 0:00:34]} cxb5 {[%emt 0:00:08]} 6. Nc3 {[%emt 0:00:03]} Qb6 {[%emt 0:00:10]} 7. Nd5 {[%emt 0:01:15]} Qb7 {[%emt 0:00:08]} 8. Bf4 {[%emt 0:00:04]} e5 {[%emt 0:00:06]} 9. Bxe5 {[%emt 0:04:14]} Nd7 {[%emt 0:00:07]} 10. Bf4 {[%emt 0:02:08]} Ngf6 {[%emt 0:00:07]} 11. Nc7+ {[%emt 0:02:26]} Kd8 {[%emt 0:00:09]} 12. Nxa8 {[%emt 0:00:05]} Qxe4+ {[%emt 0:00:13]} 13. Ne2 {[%emt 0:00:08]} Qxa8 {[%emt 0:00:05]} 14. f3 {[%emt 0:08:11]} Bb4+ {[%emt 0:02:33]} 15. Bd2 {[%emt 0:08:52]} Nd5 {[%emt 0:12:01]} 16. Bxb4 {[%emt 0:01:39]} Nxb4 {[%emt 0:00:07]} 17. Nc3 {[%emt 0:01:03]} Re8+ {[%emt 0:07:00]} 18. Kf2 {[%emt 0:00:59]} Qc6 {[%emt 0:01:24]} 19. Qd2 {[%emt 0:15:22]} Nf6 {[%emt 0:09:07]} 20. b3 {[%emt 0:10:54]} Bf5 {[%emt 0:15:58]} 21. bxc4 {[%emt 0:01:44]} bxc4 {[%emt 0:01:51]} 22. Rxa7 {[%emt 0:00:31]} Nc2 {[%emt 0:11:59]} 23. Na4 {[%emt 0:04:37]} Qd6 {[%emt 0:02:42]} 24. Qa5+ {[%emt 0:00:24]} Kc8 {[%emt 0:34:26]} 1-0